[Event "*** Titled Tuesday Blitz"]
[Site "Chess.com"]
[Date "2020.10.27"]
[Round "8"]
[White "TomiLen"]
[Black "kingofthenil"]
[Result "1-0"]
[WhiteElo "2645"]
[BlackElo "2487"]
[TimeControl "180+1"]
[EndTime "11:30:43 PDT"]
[Termination "TomiLen won by resignation"]

1. d4 {[%clk 0:03:00.9]} 1... Nf6 {[%clk 0:02:57.5]} 2. Bg5 {[%clk 0:03:00.5]}
2... d5 {[%clk 0:02:53.6]} 3. Nd2 {[%clk 0:02:59.2]} 3... c5 {[%clk 0:02:53.4]}
4. dxc5 {[%clk 0:02:57.9]} 4... e6 {[%clk 0:02:47]} 5. e3 {[%clk 0:02:57.9]}
5... Bxc5 {[%clk 0:02:46.8]} 6. Ngf3 {[%clk 0:02:58.4]} 6... h6 {[%clk
0:02:46.2]} 7. Bh4 {[%clk 0:02:58]} 7... O-O {[%clk 0:02:43.7]} 8. Be2 {[%clk
0:02:57.9]} 8... Nc6 {[%clk 0:02:28.7]} 9. a3 {[%clk 0:02:57.5]} 9... Be7 {[%clk
0:02:28]} 10. c4 {[%clk 0:02:54.5]} 10... e5 {[%clk 0:02:23.5]} 11. cxd5 {[%clk
0:02:51]} 11... Nxd5 {[%clk 0:02:24.4]} 12. Bxe7 {[%clk 0:02:50.1]} 12... Qxe7
{[%clk 0:02:25.3]} 13. O-O {[%clk 0:02:31.5]} 13... Rd8 {[%clk 0:02:25.1]} 14.
Qc2 {[%clk 0:02:27.2]} 14... Bg4 {[%clk 0:02:24.7]} 15. h3 {[%clk 0:02:17.1]}
15... Bh5 {[%clk 0:02:24.3]} 16. Rac1 {[%clk 0:02:04.9]} 16... Rac8 {[%clk
0:02:24.1]} 17. Qa4 {[%clk 0:01:48.6]} 17... a6 {[%clk 0:02:20.9]} 18. Ne4
{[%clk 0:01:41.1]} 18... f5 {[%clk 0:01:34.2]} 19. Ng3 {[%clk 0:01:37.2]} 19...
Be8 {[%clk 0:00:42.4]} 20. Nxf5 {[%clk 0:01:06.5]} 20... Qf6 {[%clk 0:00:42.2]}
21. Qe4 {[%clk 0:01:02.5]} 21... Bg6 {[%clk 0:00:36.1]} 22. g4 {[%clk
0:00:57.4]} 22... Kh8 {[%clk 0:00:28.9]} 23. Rfd1 {[%clk 0:00:44]} 23... Nde7
{[%clk 0:00:28.8]} 24. Rxd8+ {[%clk 0:00:35.3]} 24... Rxd8 {[%clk 0:00:29.7]}
25. Bd3 {[%clk 0:00:25.4]} 25... Rxd3 {[%clk 0:00:21.3]} 26. Qxd3 {[%clk
0:00:24.8]} 26... Nxf5 {[%clk 0:00:22.2]} 27. gxf5 {[%clk 0:00:23.7]} 27... Bxf5
{[%clk 0:00:23.1]} 28. Qf1 {[%clk 0:00:22]} 28... Be4 {[%clk 0:00:17.4]} 29. Ne1
{[%clk 0:00:19.8]} 29... Ne7 {[%clk 0:00:15.5]} 30. f3 {[%clk 0:00:18.5]} 30...
Bc6 {[%clk 0:00:14]} 31. Qf2 {[%clk 0:00:17]} 31... Nf5 {[%clk 0:00:13.6]} 32.
Ng2 {[%clk 0:00:16.2]} 32... Qg6 {[%clk 0:00:11.8]} 33. Rf1 {[%clk 0:00:14.4]}
33... Ng3 {[%clk 0:00:11]} 34. Re1 {[%clk 0:00:13.6]} 34... Nf5 {[%clk
0:00:07.9]} 35. Kh2 {[%clk 0:00:13.4]} 35... Qd6 {[%clk 0:00:07.4]} 36. e4
{[%clk 0:00:12.7]} 36... Nd4 {[%clk 0:00:08]} 37. Ne3 {[%clk 0:00:10.7]} 37...
Qf6 {[%clk 0:00:07.7]} 38. Rf1 {[%clk 0:00:10.9]} 38... Ne6 {[%clk 0:00:04.1]}
39. Ng2 {[%clk 0:00:10.1]} 39... Nd4 {[%clk 0:00:02.2]} 40. Qg3 {[%clk
0:00:09.3]} 40... Ne6 {[%clk 0:00:02.6]} 41. Rf2 {[%clk 0:00:09.1]} 41... g5
{[%clk 0:00:03.1]} 42. Qg4 {[%clk 0:00:08.6]} 42... Kg7 {[%clk 0:00:03.6]} 43.
h4 {[%clk 0:00:08.9]} 43... Be8 {[%clk 0:00:02.7]} 44. hxg5 {[%clk 0:00:08.6]}
44... hxg5 {[%clk 0:00:03.6]} 45. Qg3 {[%clk 0:00:08.4]} 45... Bh5 {[%clk
0:00:03]} 46. Ne3 {[%clk 0:00:08.3]} 46... Nf4 {[%clk 0:00:02.9]} 47. Nf5+
{[%clk 0:00:08.2]} 47... Kf7 {[%clk 0:00:03.2]} 48. Rd2 {[%clk 0:00:06.3]} 48...
Bg6 {[%clk 0:00:03.6]} 49. Rd7+ {[%clk 0:00:06.1]} 49... Ke8 {[%clk 0:00:04.1]}
50. Rxb7 {[%clk 0:00:05.5]} 50... Qh8+ {[%clk 0:00:03.9]} 51. Kg1 {[%clk
0:00:05.2]} 51... Ne2+ {[%clk 0:00:04.4]} 52. Kf2 {[%clk 0:00:04.4]} 52... Nxg3
{[%clk 0:00:05.3]} 53. Rb8+ {[%clk 0:00:04.3]} 53... Kf7 {[%clk 0:00:03.2]} 54.
Rxh8 {[%clk 0:00:04.9]} 54... Bxf5 {[%clk 0:00:01.8]} 55. Kxg3 {[%clk
0:00:04.1]} 55... Bg6 {[%clk 0:00:01.8]} 56. Rb8 {[%clk 0:00:04.6]} 56... Ke7
{[%clk 0:00:01.4]} 57. Rb6 {[%clk 0:00:04.8]} 57... Be8 {[%clk 0:00:02.3]} 58.
Rxa6 {[%clk 0:00:05]} 58... g4 {[%clk 0:00:02.7]} 59. Kxg4 {[%clk 0:00:04.8]}
59... Bb5 {[%clk 0:00:01.9]} 60. Ra7+ {[%clk 0:00:05.2]} 60... Kd6 {[%clk
0:00:02]} 61. Kg5 {[%clk 0:00:05.4]} 61... Be2 {[%clk 0:00:01.9]} 62. f4 {[%clk
0:00:05.7]} 62... Bd3 {[%clk 0:00:01.4]} 63. fxe5+ {[%clk 0:00:05.3]} 63... Kxe5
{[%clk 0:00:01.9]} 64. Ra5+ {[%clk 0:00:05.8]} 64... Kxe4 {[%clk 0:00:01.9]} 65.
b4 {[%clk 0:00:06.7]} 65... Kd4 {[%clk 0:00:01.8]} 66. Kf6 {[%clk 0:00:07.2]}
66... Bc4 {[%clk 0:00:01.8]} 67. Ke7 {[%clk 0:00:08.1]} 67... Kc3 {[%clk
0:00:01.4]} 68. Kd6 {[%clk 0:00:09]} 68... Kb3 {[%clk 0:00:02.3]} 69. Kc5 {[%clk
0:00:09.6]} 1-0

[Event "*** Titled Tuesday Blitz"]
[Site "Chess.com"]
[Date "2020.10.27"]
[Round "8"]
[White "m_ezat"]
[Black "babyking1205"]
[Result "0-1"]
[WhiteElo "2502"]
[BlackElo "2657"]
[TimeControl "180+1"]
[EndTime "11:30:46 PDT"]
[Termination "babyking1205 won on time"]

1. d4 {[%clk 0:02:27]} 1... Nf6 {[%clk 0:02:59.6]} 2. c4 {[%clk 0:02:08.8]} 2...
c5 {[%clk 0:02:59.7]} 3. d5 {[%clk 0:02:08.5]} 3... b5 {[%clk 0:02:59.8]} 4.
cxb5 {[%clk 0:02:08.2]} 4... a6 {[%clk 0:02:59.9]} 5. Nc3 {[%clk 0:02:08.8]}
5... e6 {[%clk 0:02:58.9]} 6. e4 {[%clk 0:02:08.9]} 6... axb5 {[%clk 0:02:58.2]}
7. e5 {[%clk 0:02:04.9]} 7... b4 {[%clk 0:02:53.6]} 8. dxe6 {[%clk 0:01:55.2]}
8... dxe6 {[%clk 0:02:48]} 9. Qxd8+ {[%clk 0:01:51.8]} 9... Kxd8 {[%clk
0:02:48.9]} 10. exf6 {[%clk 0:01:46.8]} 10... bxc3 {[%clk 0:02:48.5]} 11. bxc3
{[%clk 0:01:45.5]} 11... gxf6 {[%clk 0:02:48.3]} 12. Nf3 {[%clk 0:01:44.4]}
12... Nc6 {[%clk 0:02:45.2]} 13. Bb5 {[%clk 0:01:37.5]} 13... Kc7 {[%clk
0:02:44.4]} 14. O-O {[%clk 0:01:29.6]} 14... Rg8 {[%clk 0:02:43.8]} 15. a4
{[%clk 0:01:23.4]} 15... Bb7 {[%clk 0:02:41.8]} 16. Bf4+ {[%clk 0:01:20.3]}
16... e5 {[%clk 0:02:30.7]} 17. Bg3 {[%clk 0:01:20.5]} 17... Ne7 {[%clk
0:02:29.8]} 18. Nd2 {[%clk 0:01:19]} 18... h5 {[%clk 0:02:28.9]} 19. f3 {[%clk
0:01:10.6]} 19... Nd5 {[%clk 0:02:25.7]} 20. Ne4 {[%clk 0:01:02.7]} 20... Be7
{[%clk 0:02:21.2]} 21. Rfe1 {[%clk 0:00:53.2]} 21... Rg6 {[%clk 0:01:59.7]} 22.
a5 {[%clk 0:00:51.8]} 22... Rag8 {[%clk 0:01:58.1]} 23. c4 {[%clk 0:00:48.1]}
23... Nf4 {[%clk 0:01:54.8]} 24. Rad1 {[%clk 0:00:42.1]} 24... Bc8 {[%clk
0:01:43.4]} 25. Rd2 {[%clk 0:00:38.9]} 25... Ne6 {[%clk 0:01:36.6]} 26. Nc3
{[%clk 0:00:38]} 26... Bd8 {[%clk 0:01:31.1]} 27. Nd5+ {[%clk 0:00:37.6]} 27...
Kb8 {[%clk 0:01:31.2]} 28. a6 {[%clk 0:00:34.6]} 28... Nd4 {[%clk 0:01:29.9]}
29. Rb2 {[%clk 0:00:34]} 29... Ka7 {[%clk 0:01:28.9]} 30. Kh1 {[%clk 0:00:22.5]}
30... Be6 {[%clk 0:01:04.9]} 31. Nc3 {[%clk 0:00:20]} 31... Ba5 {[%clk 0:01:03]}
32. Rc1 {[%clk 0:00:17.6]} 32... h4 {[%clk 0:00:57.9]} 33. Bxh4 {[%clk
0:00:17.2]} 33... Nxf3 {[%clk 0:00:58.3]} 34. Bg3 {[%clk 0:00:16.2]} 34... Nd4
{[%clk 0:00:52]} 35. Ba4 {[%clk 0:00:16.2]} 35... Bxc4 {[%clk 0:00:49.2]} 36.
Ne4 {[%clk 0:00:15.4]} 36... Bd5 {[%clk 0:00:46.1]} 37. Nxc5 {[%clk 0:00:15.4]}
37... Rc8 {[%clk 0:00:44.2]} 38. Nd3 {[%clk 0:00:12.1]} 38... Rxc1+ {[%clk
0:00:43.7]} 39. Nxc1 {[%clk 0:00:12.6]} 39... Kxa6 {[%clk 0:00:39.4]} 40. Nd3
{[%clk 0:00:12.2]} 40... Bc3 {[%clk 0:00:38.1]} 41. Nc5+ {[%clk 0:00:11.5]}
41... Ka5 {[%clk 0:00:38.6]} 42. Rb1 {[%clk 0:00:10.5]} 42... Bb4 {[%clk
0:00:34.5]} 43. Bb3 {[%clk 0:00:10.7]} 43... Nxb3 {[%clk 0:00:19.8]} 44. Nxb3+
{[%clk 0:00:10.6]} 44... Kb5 {[%clk 0:00:20.4]} 45. Nd2 {[%clk 0:00:09.9]} 45...
Ka4 {[%clk 0:00:18.1]} 46. Nf3 {[%clk 0:00:09.3]} 46... Bc5 {[%clk 0:00:16]} 47.
Rd1 {[%clk 0:00:06.1]} 47... Be4 {[%clk 0:00:15.8]} 48. Rc1 {[%clk 0:00:05.9]}
48... Kb5 {[%clk 0:00:14.2]} 49. Nd2 {[%clk 0:00:06.4]} 49... Bd5 {[%clk
0:00:14]} 50. Rb1+ {[%clk 0:00:06.2]} 50... Kc6 {[%clk 0:00:14]} 51. Rc1 {[%clk
0:00:05.9]} 51... Kd6 {[%clk 0:00:13.5]} 52. Nc4+ {[%clk 0:00:06.2]} 52... Ke6
{[%clk 0:00:13.4]} 53. Nd2 {[%clk 0:00:05.2]} 53... Be3 {[%clk 0:00:13.3]} 54.
Rd1 {[%clk 0:00:05.8]} 54... f5 {[%clk 0:00:13.8]} 55. Nf3 {[%clk 0:00:05.7]}
55... f4 {[%clk 0:00:14.2]} 56. Nh4 {[%clk 0:00:04.9]} 56... fxg3 {[%clk
0:00:12.7]} 57. Nxg6 {[%clk 0:00:04.6]} 57... fxg6 {[%clk 0:00:13.6]} 58. hxg3
{[%clk 0:00:04.8]} 58... Bf2 {[%clk 0:00:14]} 59. Kh2 {[%clk 0:00:04.6]} 59...
e4 {[%clk 0:00:14.3]} 60. Rb1 {[%clk 0:00:03.8]} 60... e3 {[%clk 0:00:14.8]} 61.
Rb6+ {[%clk 0:00:03.8]} 61... Kf5 {[%clk 0:00:14.6]} 62. Rb8 {[%clk 0:00:04.2]}
62... e2 {[%clk 0:00:15]} 63. Rf8+ {[%clk 0:00:04.8]} 63... Kg5 {[%clk
0:00:15.1]} 64. Re8 {[%clk 0:00:05.2]} 64... e1=Q {[%clk 0:00:14.9]} 65. Rxe1
{[%clk 0:00:05.3]} 65... Bxe1 {[%clk 0:00:15.8]} 66. Kh3 {[%clk 0:00:06.2]}
66... Be6+ {[%clk 0:00:16.3]} 67. g4 {[%clk 0:00:06.7]} 67... Bxg4+ {[%clk
0:00:16.3]} 68. Kh2 {[%clk 0:00:06]} 68... Kh4 {[%clk 0:00:16.3]} 0-1

[Event "*** Titled Tuesday Blitz"]
[Site "Chess.com"]
[Date "2020.10.27"]
[Round "8"]
[White "MomchilPetkov"]
[Black "boasovietica"]
[Result "1/2-1/2"]
[WhiteElo "2635"]
[BlackElo "2501"]
[TimeControl "180+1"]
[EndTime "11:30:52 PDT"]
[Termination "Game drawn - insufficient material"]

1. d4 {[%clk 0:03:00.9]} 1... Nf6 {[%clk 0:02:59.7]} 2. Bf4 {[%clk 0:03:00]}
2... g6 {[%clk 0:02:59.1]} 3. e3 {[%clk 0:03:00.2]} 3... Bg7 {[%clk 0:02:59.4]}
4. Nf3 {[%clk 0:03:00.8]} 4... O-O {[%clk 0:02:59.5]} 5. h3 {[%clk 0:03:01.4]}
5... d6 {[%clk 0:02:58.8]} 6. Be2 {[%clk 0:03:01.9]} 6... b6 {[%clk 0:02:58.8]}
7. O-O {[%clk 0:03:02.1]} 7... Bb7 {[%clk 0:02:59.3]} 8. c4 {[%clk 0:02:59.3]}
8... Nbd7 {[%clk 0:02:59.1]} 9. Nc3 {[%clk 0:02:58.8]} 9... Ne4 {[%clk
0:02:58.5]} 10. Nxe4 {[%clk 0:02:49.2]} 10... Bxe4 {[%clk 0:02:59.4]} 11. Bh2
{[%clk 0:02:48.6]} 11... e5 {[%clk 0:02:51]} 12. dxe5 {[%clk 0:02:27.9]} 12...
Nxe5 {[%clk 0:02:50.4]} 13. Nxe5 {[%clk 0:02:26.9]} 13... Bxe5 {[%clk 0:02:49]}
14. Bxe5 {[%clk 0:02:25.9]} 14... dxe5 {[%clk 0:02:49.9]} 15. Qc1 {[%clk
0:02:14.7]} 15... Qg5 {[%clk 0:02:41.8]} 16. f3 {[%clk 0:02:08.5]} 16... Bb7
{[%clk 0:02:36.1]} 17. c5 {[%clk 0:02:04.3]} 17... Rfd8 {[%clk 0:02:22.9]} 18.
c6 {[%clk 0:02:01.4]} 18... Bc8 {[%clk 0:02:21]} 19. f4 {[%clk 0:01:56.6]} 19...
exf4 {[%clk 0:02:08.8]} 20. exf4 {[%clk 0:01:57.5]} 20... Qf6 {[%clk 0:02:04.3]}
21. Rf2 {[%clk 0:01:39.1]} 21... Bf5 {[%clk 0:01:59.8]} 22. Bc4 {[%clk
0:01:29.6]} 22... Rd4 {[%clk 0:01:52.5]} 23. Qc3 {[%clk 0:01:25.4]} 23... Rad8
{[%clk 0:01:51.3]} 24. Kh2 {[%clk 0:01:25.1]} 24... Qd6 {[%clk 0:01:46.7]} 25.
Raf1 {[%clk 0:01:12]} 25... Be4 {[%clk 0:01:28.3]} 26. Qb3 {[%clk 0:01:00.3]}
26... Bd5 {[%clk 0:01:07.3]} 27. Bxd5 {[%clk 0:00:59.4]} 27... Rxd5 {[%clk
0:01:06.4]} 28. Kh1 {[%clk 0:00:48.5]} 28... Qxc6 {[%clk 0:01:01.8]} 29. f5
{[%clk 0:00:48.8]} 29... Rd3 {[%clk 0:01:00.9]} 30. Qc2 {[%clk 0:00:37.2]} 30...
Qxc2 {[%clk 0:00:45.7]} 31. Rxc2 {[%clk 0:00:36.7]} 31... c5 {[%clk 0:00:41.4]}
32. f6 {[%clk 0:00:32.7]} 32... Rd1 {[%clk 0:00:39.6]} 33. Kg1 {[%clk
0:00:19.3]} 33... R8d6 {[%clk 0:00:28.3]} 34. Rf2 {[%clk 0:00:13]} 34... Kf8
{[%clk 0:00:27.8]} 35. g4 {[%clk 0:00:12.4]} 35... g5 {[%clk 0:00:22.4]} 36.
Rxd1 {[%clk 0:00:09.8]} 36... Rxd1+ {[%clk 0:00:21.7]} 37. Kg2 {[%clk
0:00:10.7]} 37... Rd4 {[%clk 0:00:14.5]} 38. Kg3 {[%clk 0:00:09.8]} 38... Re4
{[%clk 0:00:11.5]} 39. Rd2 {[%clk 0:00:06.6]} 39... Ke8 {[%clk 0:00:11.3]} 40.
Rd5 {[%clk 0:00:06.2]} 40... h6 {[%clk 0:00:11]} 41. h4 {[%clk 0:00:06.5]} 41...
gxh4+ {[%clk 0:00:10.2]} 42. Kxh4 {[%clk 0:00:06.5]} 42... Re2 {[%clk
0:00:10.2]} 43. b3 {[%clk 0:00:02.7]} 43... Rh2+ {[%clk 0:00:04.5]} 44. Kg3
{[%clk 0:00:02.7]} 44... Rxa2 {[%clk 0:00:02.8]} 45. Re5+ {[%clk 0:00:03.3]}
45... Kf8 {[%clk 0:00:02.5]} 46. Re7 {[%clk 0:00:04.2]} 46... Ra3 {[%clk
0:00:02.3]} 47. Rb7 {[%clk 0:00:03.7]} 47... Rxb3+ {[%clk 0:00:02.2]} 48. Kf4
{[%clk 0:00:03.9]} 48... Rb4+ {[%clk 0:00:02.4]} 49. Kf5 {[%clk 0:00:03.9]}
49... Ke8 {[%clk 0:00:02.5]} 50. Re7+ {[%clk 0:00:03]} 50... Kf8 {[%clk
0:00:02.7]} 51. Rxa7 {[%clk 0:00:03.3]} 51... Kg8 {[%clk 0:00:02.9]} 52. Ra8+
{[%clk 0:00:03.3]} 52... Kh7 {[%clk 0:00:03.2]} 53. Rf8 {[%clk 0:00:04.2]} 53...
Rd4 {[%clk 0:00:03.6]} 54. Rxf7+ {[%clk 0:00:04.5]} 54... Kg8 {[%clk 0:00:04.2]}
55. Rb7 {[%clk 0:00:05.4]} 55... Rd5+ {[%clk 0:00:04.4]} 56. Kg6 {[%clk
0:00:05.7]} 56... Rg5+ {[%clk 0:00:04.5]} 57. Kxh6 {[%clk 0:00:06.2]} 57... Rxg4
{[%clk 0:00:05.3]} 58. Rxb6 {[%clk 0:00:05.2]} 58... Kf7 {[%clk 0:00:05.7]} 59.
Kh5 {[%clk 0:00:04.6]} 59... Rg3 {[%clk 0:00:05.5]} 60. Rc6 {[%clk 0:00:04.9]}
60... Rf3 {[%clk 0:00:05.9]} 61. Kg5 {[%clk 0:00:05.4]} 61... Rg3+ {[%clk
0:00:06]} 62. Kf5 {[%clk 0:00:05.9]} 62... Rg1 {[%clk 0:00:05.9]} 63. Rc7+
{[%clk 0:00:05.2]} 63... Kf8 {[%clk 0:00:06.4]} 64. Ke5 {[%clk 0:00:05.4]} 64...
Re1+ {[%clk 0:00:06.4]} 65. Kd5 {[%clk 0:00:05.8]} 65... Rf1 {[%clk 0:00:06.8]}
66. Ke6 {[%clk 0:00:05.9]} 66... Re1+ {[%clk 0:00:07.3]} 67. Kf5 {[%clk
0:00:06]} 67... Rf1+ {[%clk 0:00:07.9]} 68. Kg5 {[%clk 0:00:06.2]} 68... Rg1+
{[%clk 0:00:08.3]} 69. Kf4 {[%clk 0:00:06.6]} 69... Rf1+ {[%clk 0:00:08.7]} 70.
Ke5 {[%clk 0:00:07]} 70... Re1+ {[%clk 0:00:09]} 71. Kd5 {[%clk 0:00:06.8]}
71... Rf1 {[%clk 0:00:09.4]} 72. Rc6 {[%clk 0:00:03.9]} 72... Kf7 {[%clk
0:00:09]} 73. Kxc5 {[%clk 0:00:03.6]} 73... Rf5+ {[%clk 0:00:08.4]} 74. Kb6
{[%clk 0:00:03.7]} 74... Rxf6 {[%clk 0:00:08.9]} 75. Rxf6+ {[%clk 0:00:04.2]}
75... Kxf6 {[%clk 0:00:09.8]} 1/2-1/2

[Event "*** Titled Tuesday Blitz"]
[Site "Chess.com"]
[Date "2020.10.27"]
[Round "8"]
[White "madmax011"]
[Black "annamaja"]
[Result "0-1"]
[WhiteElo "1860"]
[BlackElo "2286"]
[TimeControl "180+1"]
[EndTime "11:30:53 PDT"]
[Termination "annamaja won by checkmate"]

1. d4 {[%clk 0:03:00.9]} 1... d5 {[%clk 0:02:59.9]} 2. c4 {[%clk 0:03:00.8]}
2... c6 {[%clk 0:03:00]} 3. Nf3 {[%clk 0:03:00.8]} 3... Nf6 {[%clk 0:03:00.4]}
4. e3 {[%clk 0:02:59.1]} 4... e6 {[%clk 0:03:00.3]} 5. Nc3 {[%clk 0:02:59.3]}
5... Bd6 {[%clk 0:02:55.9]} 6. Bd3 {[%clk 0:02:58.8]} 6... O-O {[%clk
0:02:55.6]} 7. O-O {[%clk 0:02:57.8]} 7... dxc4 {[%clk 0:02:52.7]} 8. Bxc4
{[%clk 0:02:57.7]} 8... b5 {[%clk 0:02:53.1]} 9. Bd3 {[%clk 0:02:56.9]} 9...
Nbd7 {[%clk 0:02:44.8]} 10. Qc2 {[%clk 0:02:54.7]} 10... Bb7 {[%clk 0:02:38.2]}
11. Ne4 {[%clk 0:02:53.9]} 11... Nxe4 {[%clk 0:02:34.2]} 12. Bxe4 {[%clk
0:02:54.8]} 12... Nf6 {[%clk 0:02:34.6]} 13. Bd3 {[%clk 0:02:54.4]} 13... a6
{[%clk 0:02:26.8]} 14. a3 {[%clk 0:02:54]} 14... c5 {[%clk 0:02:14.4]} 15. dxc5
{[%clk 0:02:32.1]} 15... Bxc5 {[%clk 0:01:57.8]} 16. b4 {[%clk 0:01:58.8]} 16...
Bb6 {[%clk 0:01:33.7]} 17. Be2 {[%clk 0:00:49]} 17... Be4 {[%clk 0:01:11.4]} 18.
Qb2 {[%clk 0:00:42.1]} 18... Rc8 {[%clk 0:00:55.7]} 19. Rd1 {[%clk 0:00:37.2]}
19... Qe7 {[%clk 0:00:50.9]} 20. Bd2 {[%clk 0:00:35.4]} 20... Rc2 {[%clk
0:00:41.3]} 21. Qb3 {[%clk 0:00:30.7]} 21... Rfc8 {[%clk 0:00:40.1]} 22. Rac1
{[%clk 0:00:29.7]} 22... h6 {[%clk 0:00:22.8]} 23. Nd4 {[%clk 0:00:22.6]} 23...
Bxd4 {[%clk 0:00:16.8]} 24. exd4 {[%clk 0:00:23.5]} 24... R8c6 {[%clk
0:00:10.7]} 25. Bf3 {[%clk 0:00:20.4]} 25... Bxf3 {[%clk 0:00:06.3]} 26. Qxf3
{[%clk 0:00:21.3]} 26... Qc7 {[%clk 0:00:02.8]} 27. Rxc2 {[%clk 0:00:20]} 27...
Rxc2 {[%clk 0:00:03.7]} 28. Bf4 {[%clk 0:00:19.4]} 28... Qc3 {[%clk 0:00:03.4]}
29. Qa8+ {[%clk 0:00:13.5]} 29... Qc8 {[%clk 0:00:03.5]} 30. Qxc8+ {[%clk
0:00:13]} 30... Rxc8 {[%clk 0:00:04.4]} 31. Rc1 {[%clk 0:00:13.7]} 31... Rd8
{[%clk 0:00:03.2]} 32. Be3 {[%clk 0:00:13.7]} 32... Nd5 {[%clk 0:00:03.1]} 33.
Kf1 {[%clk 0:00:13.9]} 33... Rd7 {[%clk 0:00:02.9]} 34. Ke2 {[%clk 0:00:14]}
34... Kf8 {[%clk 0:00:02.6]} 35. Kd3 {[%clk 0:00:14.2]} 35... Ke7 {[%clk
0:00:03.1]} 36. Rc6 {[%clk 0:00:13.8]} 36... Ra7 {[%clk 0:00:03.5]} 37. f3
{[%clk 0:00:13]} 37... Kd7 {[%clk 0:00:03.9]} 38. Rc5 {[%clk 0:00:12.1]} 38...
Rc7 {[%clk 0:00:03.8]} 39. Rxc7+ {[%clk 0:00:11.6]} 39... Kxc7 {[%clk
0:00:04.7]} 40. Bd2 {[%clk 0:00:12.1]} 40... Kc6 {[%clk 0:00:05.2]} 41. g3
{[%clk 0:00:12.3]} 41... Nb6 {[%clk 0:00:05.9]} 42. Ke4 {[%clk 0:00:11.4]} 42...
Nc4 {[%clk 0:00:06.2]} 43. Bc1 {[%clk 0:00:12.2]} 43... f5+ {[%clk 0:00:06.4]}
44. Kf4 {[%clk 0:00:11.7]} 44... Kd5 {[%clk 0:00:07.3]} 45. h4 {[%clk 0:00:11]}
45... Nd6 {[%clk 0:00:03.5]} 46. Ke3 {[%clk 0:00:10.5]} 46... Nc8 {[%clk
0:00:03.3]} 47. Kd3 {[%clk 0:00:10.5]} 47... Ne7 {[%clk 0:00:03.8]} 48. g4
{[%clk 0:00:10.6]} 48... Nc6 {[%clk 0:00:04.5]} 49. gxf5 {[%clk 0:00:10.6]}
49... exf5 {[%clk 0:00:05.4]} 50. Be3 {[%clk 0:00:11.2]} 50... f4 {[%clk
0:00:04.3]} 51. Bxf4 {[%clk 0:00:10.9]} 51... Nxd4 {[%clk 0:00:04.9]} 52. Bc7
{[%clk 0:00:10.6]} 52... Nxf3 {[%clk 0:00:04.9]} 53. Bd8 {[%clk 0:00:10.5]}
53... g5 {[%clk 0:00:04.4]} 54. hxg5 {[%clk 0:00:10.1]} 54... hxg5 {[%clk
0:00:05.3]} 55. Ke3 {[%clk 0:00:10.8]} 55... g4 {[%clk 0:00:05.6]} 56. Kf4
{[%clk 0:00:10.4]} 56... Ne5 {[%clk 0:00:04.5]} 57. Bc7 {[%clk 0:00:09.5]} 57...
Nc4 {[%clk 0:00:05]} 58. Kxg4 {[%clk 0:00:09.1]} 58... Nxa3 {[%clk 0:00:05.7]}
59. Ba5 {[%clk 0:00:09.5]} 59... Kc4 {[%clk 0:00:04.8]} 60. Kf3 {[%clk
0:00:09.4]} 60... Nc2 {[%clk 0:00:05.5]} 61. Ke2 {[%clk 0:00:09.8]} 61... Nxb4
{[%clk 0:00:06.1]} 62. Kd2 {[%clk 0:00:10.3]} 62... Nc6 {[%clk 0:00:05.8]} 63.
Bc7 {[%clk 0:00:09.5]} 63... Kb3 {[%clk 0:00:06.4]} 64. Kc1 {[%clk 0:00:09]}
64... a5 {[%clk 0:00:06.6]} 65. Kb1 {[%clk 0:00:08.7]} 65... a4 {[%clk
0:00:07.2]} 66. Bd6 {[%clk 0:00:08.5]} 66... a3 {[%clk 0:00:07.6]} 67. Ka1
{[%clk 0:00:06.7]} 67... b4 {[%clk 0:00:07.8]} 68. Kb1 {[%clk 0:00:06.2]} 68...
Kc4 {[%clk 0:00:08.2]} 69. Ka2 {[%clk 0:00:05.6]} 69... Nd4 {[%clk 0:00:08.3]}
70. Bxb4 {[%clk 0:00:05.3]} 70... Kxb4 {[%clk 0:00:08.6]} 71. Ka1 {[%clk
0:00:05.6]} 71... Kb3 {[%clk 0:00:06.2]} 72. Kb1 {[%clk 0:00:05.8]} 72... a2+
{[%clk 0:00:06.7]} 73. Ka1 {[%clk 0:00:06.7]} 73... Nc2# {[%clk 0:00:07.4]} 0-1